{"text_format":"1","workbook":"xlsx","n_sheets":5,"sheets":["Anleitungen","Notenbuch","Kursteilnehmerzusammenfassung","Benotungskriterien","Diagrammdaten"],"not_rendered":{"charts":1,"images":0,"macros":1,"external_links":0,"defined_names":14,"comments":0,"pivot_tables":0},"unopened":[],"bounds":{"document_bytes":16777216,"sheet_cells":100000,"rows_first":2000,"rows_last":500,"rows_between":2000,"halvings":0,"cell_chars":16384,"cell_head_chars":4096},"cells_cut":0,"cells_raw":0,"read":"whole","date_system":"1900"}

{"sheet":"Anleitungen","index":0,"n_rows":24,"n_cols":3,"rows_kept":24,"cut":false,"hidden":false,"merged":[[3,1,3,11],[22,2,22,11],[21,2,21,11],[23,2,23,11],[5,2,5,11],[8,2,8,11],[10,2,10,11],[12,2,12,12],[6,2,6,10],[20,1,20,11],[13,2,13,5],[15,2,15,12],[16,2,16,12],[17,2,17,12],[18,2,18,12],[14,1,14,12]]}
[null,"Anleitungen"]
[null,"Erstellen Sie für den Fall der Fälle immer Sicherungskopien Ihrer Benotungen."]
[null,"Was sind die ersten Schritte?"]
[null,"Es gibt einige wenige Schritte, die Sie durchführen sollten, um diese Vorlage Ihrem Bedarf entsprechend anzupassen, bevor Sie mit dem Nachverfolgen der Noten der Kursteilnehmer beginnen:"]
[null,"AUF DEM ARBEITSBLATT \"NOTENBUCH\":"]
[null,"●","Ersetzen Sie die Platzhalter für die Kursbezeichnung und den Namen des Dozenten durch eigene Angaben. "]
[null,"●","Fügen Sie jeden Kursteilnehmer im Feld Name des Kursteilnehmers hinzu."]
[null,"AUF DEM ARBEITSBLATT \"KURSTEILNEHMERZUSAMMENFASSUNG\":"]
[null,"●","Ersetzen Sie Name Ihrer Einrichtung durch den Namen Ihrer Einrichtung. "]
[null,"AUF DEM ARBEITSBLATT \"BENOTUNGSKRITERIEN\":"]
[null,"●","Passen Sie die Tabelle NOTE & DURCHSCHNITTSNOTE so an, dass sie Ihrem Benotungssystem entspricht."]
[null,"(OPTIONAL) ÄNDERN SIE DIE FARBEN FÜR DIE GESAMTE ARBEITSMAPPE:"]
[null,"●","Klicken Sie auf der Registerkarte \"Seitenlayout\" in der Gruppe \"Designs\" auf \"Farben\", und wählen Sie im Farbenkatalog eine andere Designfarbenpalette aus. "]
[]
[null,"Ich habe die erforderlichen Anpassungen vorgenommen. Wie geht es nun weiter?"]
[null,1,"Fügen Sie auf dem Arbeitsblatt \"Notenbuch\" eine neue Aufgabe oder ein Datum für eine Prüfung beginnend in Zelle J3 hinzu. Geben Sie dann unten die Gesamtpunktzahl für die Aufgabe oder den Test ein. Die Mögliche Gesamtpunktzahl wird automatisch berechnet."]
[null,2,"Geben Sie den Namen der entsprechenden Aufgabe oder der Prüfung beginnend in Zelle J5ein. DieErreichte Gesamtpunktzahl wird automatisch berechnet."]
[null,3,"Geben Sie für jede Aufgabe oder jede Prüfung die erreichte Punktzahl eines jeden Kursteilnehmers ein. Die Spalten Note und Prozentsatz (%) werden automatisch berechnet, die Werte können bei Bedarf jedoch überschrieben werden. "]
[null,4,"Klicken Sie zum Berechnen der Durchschnittsnote/Punktzahl für jede neu erstellte Aufgabe oder jede Prüfung in die hellblaue Summenzelle unterhalb der neu hinzugefügten Daten, und wählen Sie dann in der Dropdownliste \"Durchschnitt\" aus."]
[null,"Wie können weitere Kursteilnehmer hinzugefügt werden?"]
[null,"Bei der Liste der Kursteilnehmernamen und der Noten handelt es sich um eine Excel-Tabelle. Wenn Sie nach dem Überschreiben der Beispieldaten weitere Kursteilnehmer hinzufügen möchten, führen Sie einen der folgenden Schritte durch:"]
[null,"● ","Setzen Sie den Mauszeiger in die letzte Zelle oberhalb der Summenzeile mit dem Namen Durchschnittsnote/Punktzahl des letzten Kursteilnehmers, und drücken Sie dann die TAB-TASTE."]
[null,"● ","Klicken Sie mit der rechten Maustaste in die Tabelle, zeigen Sie im Popupmenü auf \"Einfügen\", und klicken Sie dann auf Tabellenzeilen nach oben oder Tabellenzeilen nach unten. "]
[null,"● ","Klicken Sie in der unteren rechten Ecke der Tabelle auf den Ziehpunkt zur Größenänderung der Tabelle, und ziehen Sie ihn nach unten, um die Anzahl der verfügbaren Tabellenzeilen zu erhöhen."]

{"sheet":"Notenbuch","index":1,"n_rows":10,"n_cols":9,"rows_kept":10,"cut":false,"hidden":false,"merged":[]}
[null,"Kursbezeichnung eingeben"]
[null,"Namen des Dozenten eingeben"]
[null,"DATUM DER AUFGABE",null,null,null,null,"2012-04-30","2012-05-01","2012-05-05"]
[null,"MÖGLICHE GESAMTPUNKTZAHL",null,null,null,{"$f":"SUM(MöglichePunkte[#All])","v":90},20,20,50]
[null,"Name des Kursteilnehmers","Leistung","Note","%","Erreichte Gesamtpunktzahl","Aufgabe 1","Aufgabe 2","Aufgabe 3"]
[null,"Kursteilnehmer 1",{"$f":"Kursteilnehmerdaten[[#This Row],[Erreichte Gesamtpunktzahl]]","v":90},{"$f":"IFERROR(VLOOKUP(Kursteilnehmerdaten[[#This Row],[%]],Notentabelle[],2,TRUE),\"\")","v":"1,0"},{"$f":"IFERROR(Kursteilnehmerdaten[[#This Row],[Erreichte Gesamtpunktzahl]]/Gesamtpunktzahl,\"\")","v":1},{"$f":"IFERROR(SUM(Kursteilnehmerdaten[[#This Row],[Aufgabe 1]]:OFFSET(F6,,COUNTA(LeistungDiagrammwerte))),\"\")","v":90},20,20,50]
[null,"Kursteilnehmer 2",{"$f":"Kursteilnehmerdaten[[#This Row],[Erreichte Gesamtpunktzahl]]","v":60},{"$f":"IFERROR(VLOOKUP(Kursteilnehmerdaten[[#This Row],[%]],Notentabelle[],2,TRUE),\"\")","v":"5,0"},{"$f":"IFERROR(Kursteilnehmerdaten[[#This Row],[Erreichte Gesamtpunktzahl]]/Gesamtpunktzahl,\"\")","v":0.66666666666666663},{"$f":"IFERROR(SUM(Kursteilnehmerdaten[[#This Row],[Aufgabe 1]]:OFFSET(F7,,COUNTA(LeistungDiagrammwerte))),\"\")","v":60},10,10,40]
[null,"Kursteilnehmer 3",{"$f":"Kursteilnehmerdaten[[#This Row],[Erreichte Gesamtpunktzahl]]","v":75},{"$f":"IFERROR(VLOOKUP(Kursteilnehmerdaten[[#This Row],[%]],Notentabelle[],2,TRUE),\"\")","v":"3,0"},{"$f":"IFERROR(Kursteilnehmerdaten[[#This Row],[Erreichte Gesamtpunktzahl]]/Gesamtpunktzahl,\"\")","v":0.83333333333333337},{"$f":"IFERROR(SUM(Kursteilnehmerdaten[[#This Row],[Aufgabe 1]]:OFFSET(F8,,COUNTA(LeistungDiagrammwerte))),\"\")","v":75},20,15,40]
[null,"Melton",{"$f":"Kursteilnehmerdaten[[#This Row],[Erreichte Gesamtpunktzahl]]","v":80},{"$f":"IFERROR(VLOOKUP(Kursteilnehmerdaten[[#This Row],[%]],Notentabelle[],2,TRUE),\"\")","v":"2,7"},{"$f":"IFERROR(Kursteilnehmerdaten[[#This Row],[Erreichte Gesamtpunktzahl]]/Gesamtpunktzahl,\"\")","v":0.88888888888888884},{"$f":"IFERROR(SUM(Kursteilnehmerdaten[[#This Row],[Aufgabe 1]]:OFFSET(F9,,COUNTA(LeistungDiagrammwerte))),\"\")","v":80},20,20,40]
[null,"Durchschnittsnote/Punktzahl",null,{"$f":"IFERROR(VLOOKUP(Kursteilnehmerdaten[[#Totals],[%]],Notentabelle[],2,TRUE),\"\")","v":"3,0"},{"$f":"SUBTOTAL(101,Kursteilnehmerdaten[%])","v":0.84722222222222221},{"$f":"SUBTOTAL(101,Kursteilnehmerdaten[Erreichte Gesamtpunktzahl])","v":76.25},{"$f":"SUBTOTAL(101,Kursteilnehmerdaten[Aufgabe 1])","v":17.5},{"$f":"SUBTOTAL(101,Kursteilnehmerdaten[Aufgabe 2])","v":16.25},{"$f":"SUBTOTAL(101,Kursteilnehmerdaten[Aufgabe 3])","v":42.5}]

{"sheet":"Kursteilnehmerzusammenfassung","index":2,"n_rows":44,"n_cols":9,"rows_kept":44,"cut":false,"hidden":false,"merged":[[42,6,42,8],[5,8,7,8],[31,1,40,8],[5,3,7,3],[5,4,7,4],[5,5,7,5],[5,6,7,6],[5,7,7,7]]}
[null,"Namen der Einrichtung eingeben"]
[]
[]
[]
[null,"DOZENT",{"$f":"IF(Dozentenname=\"Namen des Dozenten eingeben\",\"\",Dozentenname)","v":""},"Rang","Note","Prozentsatz","Punkte des Kursteilnehmers","Mögliche Punkte","Durchschnittspunktzahl"]
[null,"KURS",{"$f":"IF(Kursbezeichung=\"Kursbezeichnung eingeben\",\"\",Kursbezeichung)","v":""},{"$f":"IFERROR(_xlfn.RANK.EQ(VLOOKUP(C8,Kursteilnehmerdaten[],5,FALSE),Kursteilnehmerdaten[Erreichte Gesamtpunktzahl]) & \" van \"&COUNTA(Kursteilnehmerdaten[Name des Kursteilnehmers]),\"\")","v":"1 van 4"},{"$f":"IFERROR(VLOOKUP(Name,Kursteilnehmerdaten[],3,FALSE),\"\")","v":"1,0"},{"$f":"IFERROR(VLOOKUP(Name,Kursteilnehmerdaten[],4,FALSE),\"\")","v":1},{"$f":"IFERROR(VLOOKUP(Name,Kursteilnehmerdaten[],5,FALSE),\"\")","v":90},{"$f":"Gesamtpunktzahl","v":90},{"$f":"IFERROR(VLOOKUP(F6,Notentabelle[],3,TRUE),\"\")","v":4}]
[null,"DATUM","Datum der Leistung eingeben"]
[null,"KURSTEILNEHMER","Kursteilnehmer 1"]
[]
[]
[]
[null,"Leistung des Kursteilnehmers"]
[]
[]
[]
[]
[]
[]
[]
[]
[]
[]
[]
[]
[]
[]
[]
[]
[]
[]
[null,"Kommentare des Dozenten"]
[]
[]
[]
[]
[]
[]
[]
[]
[]
[]
[]
[]
[null,"Unterschrift der Eltern (falls erforderlich)",null,null,null,null,"Datum:"]

{"sheet":"Benotungskriterien","index":3,"n_rows":19,"n_cols":4,"rows_kept":19,"cut":false,"hidden":false,"merged":[]}
[null,"Note berechnen"]
[null,"Geben Sie in der Tabelle unten die Prozentbereiche für jede Notenbereich ein, um die Vorlage an Ihre Benotungskriterien anzupassen. "]
[null,"NOTE & DURCHSCHNITTSNOTE (Tabelle)"]
[null,"(Wird für die Berechnung der Noten der Kursteilnehmer auf dem Arbeitsblatt \"Notenbuch\" verwendet)"]
[null,"PUNKTZAHL","ERREICHTE NOTE","Durchschnittspunktzahl"]
[null,0,"5,0",0]
[null,0.6,"5,0",0.67]
[null,0.63,"5,0",1]
[null,0.67,"5,0",1.33]
[null,0.7,"5,0",1.67]
[null,0.73,"4,0",2]
[null,0.77,"3,7",2.33]
[null,0.8,"3,3",2.67]
[null,0.83,"3,0",3]
[null,0.87,"2,7",3.33]
[null,0.9,"1,7",3.67]
[null,0.93,"1,3",4]
[null,0.97,"1,0",4]
[null,"Punktzahl und Durchschnittsnote müssen in aufsteigender Reihenfolge eingegeben werden."]

{"sheet":"Diagrammdaten","index":4,"n_rows":6,"n_cols":302,"rows_kept":6,"cut":false,"hidden":true,"merged":[]}
[null,"Diagrammdaten für Diagramm \"Kursteilnehmerzusammenfassung\""]
[null,"Dieses Arbeitsblatt sollte ausgeblendet bleiben. Änderungen, die an den nachstehenden Daten vorgenommen werden, können zu Fehlern in der Vorlage führen."]
[]
[null,"Diagrammbeschriftungen",{"$f":"LeistungDiagrammbeschriftungen","v":"Aufgabe 1"},"Aufgabe 2","Aufgabe 3",{"$error":"#N/A"},{"$error":"#N/A"},{"$error":"#N/A"},{"$error":"#N/A"},{"$error":"#N/A"},{"$error":"#N/A"},{"$error":"#N/A"},{"$error":"#N/A"},{"$error":"#N/A"},{"$error":"#N/A"},{"$error":"#N/A"},{"$error":"#N/A"},{"$error":"#N/A"},{"$error":"#N/A"},{"$error":"#N/A"},{"$error":"#N/A"},{"$error":"#N/A"},{"$error":"#N/A"},{"$error":"#N/A"},{"$error":"#N/A"},{"$error":"#N/A"},{"$error":"#N/A"},{"$error":"#N/A"},{"$error":"#N/A"},{"$error":"#N/A"},{"$error":"#N/A"},{"$error":"#N/A"},{"$error":"#N/A"},{"$error":"#N/A"},{"$error":"#N/A"},{"$error":"#N/A"},{"$error":"#N/A"},{"$error":"#N/A"},{"$error":"#N/A"},{"$error":"#N/A"},{"$error":"#N/A"},{"$error":"#N/A"},{"$error":"#N/A"},{"$error":"#N/A"},{"$error":"#N/A"},{"$error":"#N/A"},{"$error":"#N/A"},{"$error":"#N/A"},{"$error":"#N/A"},{"$error":"#N/A"},{"$error":"#N/A"},{"$error":"#N/A"},{"$error":"#N/A"},{"$error":"#N/A"},{"$error":"#N/A"},{"$error":"#N/A"},{"$error":"#N/A"},{"$error":"#N/A"},{"$error":"#N/A"},{"$error":"#N/A"},{"$error":"#N/A"},{"$error":"#N/A"},{"$error":"#N/A"},{"$error":"#N/A"},{"$error":"#N/A"},{"$error":"#N/A"},{"$error":"#N/A"},{"$error":"#N/A"},{"$error":"#N/A"},{"$error":"#N/A"},{"$error":"#N/A"},{"$error":"#N/A"},{"$error":"#N/A"},{"$error":"#N/A"},{"$error":"#N/A"},{"$error":"#N/A"},{"$error":"#N/A"},{"$error":"#N/A"},{"$error":"#N/A"},{"$error":"#N/A"},{"$error":"#N/A"},{"$error":"#N/A"},{"$error":"#N/A"},{"$error":"#N/A"},{"$error":"#N/A"},{"$error":"#N/A"},{"$error":"#N/A"},{"$error":"#N/A"},{"$error":"#N/A"},{"$error":"#N/A"},{"$error":"#N/A"},{"$error":"#N/A"},{"$error":"#N/A"},{"$error":"#N/A"},{"$error":"#N/A"},{"$error":"#N/A"},{"$error":"#N/A"},{"$error":"#N/A"},{"$error":"#N/A"},{"$error":"#N/A"},{"$error":"#N/A"},{"$error":"#N/A"},{"$error":"#N/A"},{"$error":"#N/A"},{"$error":"#N/A"},{"$error":"#N/A"},{"$error":"#N/A"},{"$error":"#N/A"},{"$error":"#N/A"},{"$error":"#N/A"},{"$error":"#N/A"},{"$error":"#N/A"},{"$error":"#N/A"},{"$error":"#N/A"},{"$error":"#N/A"},{"$error":"#N/A"},{"$error":"#N/A"},{"$error":"#N/A"},{"$error":"#N/A"},{"$error":"#N/A"},{"$error":"#N/A"},{"$error":"#N/A"},{"$error":"#N/A"},{"$error":"#N/A"},{"$error":"#N/A"},{"$error":"#N/A"},{"$error":"#N/A"},{"$error":"#N/A"},{"$error":"#N/A"},{"$error":"#N/A"},{"$error":"#N/A"},{"$error":"#N/A"},{"$error":"#N/A"},{"$error":"#N/A"},{"$error":"#N/A"},{"$error":"#N/A"},{"$error":"#N/A"},{"$error":"#N/A"},{"$error":"#N/A"},{"$error":"#N/A"},{"$error":"#N/A"},{"$error":"#N/A"},{"$error":"#N/A"},{"$error":"#N/A"},{"$error":"#N/A"},{"$error":"#N/A"},{"$error":"#N/A"},{"$error":"#N/A"},{"$error":"#N/A"},{"$error":"#N/A"},{"$error":"#N/A"},{"$error":"#N/A"},{"$error":"#N/A"},{"$error":"#N/A"},{"$error":"#N/A"},{"$error":"#N/A"},{"$error":"#N/A"},{"$error":"#N/A"},{"$error":"#N/A"},{"$error":"#N/A"},{"$error":"#N/A"},{"$error":"#N/A"},{"$error":"#N/A"},{"$error":"#N/A"},{"$error":"#N/A"},{"$error":"#N/A"},{"$error":"#N/A"},{"$error":"#N/A"},{"$error":"#N/A"},{"$error":"#N/A"},{"$error":"#N/A"},{"$error":"#N/A"},{"$error":"#N/A"},{"$error":"#N/A"},{"$error":"#N/A"},{"$error":"#N/A"},{"$error":"#N/A"},{"$error":"#N/A"},{"$error":"#N/A"},{"$error":"#N/A"},{"$error":"#N/A"},{"$error":"#N/A"},{"$error":"#N/A"},{"$error":"#N/A"},{"$error":"#N/A"},{"$error":"#N/A"},{"$error":"#N/A"},{"$error":"#N/A"},{"$error":"#N/A"},{"$error":"#N/A"},{"$error":"#N/A"},{"$error":"#N/A"},{"$error":"#N/A"},{"$error":"#N/A"},{"$error":"#N/A"},{"$error":"#N/A"},{"$error":"#N/A"},{"$error":"#N/A"},{"$error":"#N/A"},{"$error":"#N/A"},{"$error":"#N/A"},{"$error":"#N/A"},{"$error":"#N/A"},{"$error":"#N/A"},{"$error":"#N/A"},{"$error":"#N/A"},{"$error":"#N/A"},{"$error":"#N/A"},{"$error":"#N/A"},{"$error":"#N/A"},{"$error":"#N/A"},{"$error":"#N/A"},{"$error":"#N/A"},{"$error":"#N/A"},{"$error":"#N/A"},{"$error":"#N/A"},{"$error":"#N/A"},{"$error":"#N/A"},{"$error":"#N/A"},{"$error":"#N/A"},{"$error":"#N/A"},{"$error":"#N/A"},{"$error":"#N/A"},{"$error":"#N/A"},{"$error":"#N/A"},{"$error":"#N/A"},{"$error":"#N/A"},{"$error":"#N/A"},{"$error":"#N/A"},{"$error":"#N/A"},{"$error":"#N/A"},{"$error":"#N/A"},{"$error":"#N/A"},{"$error":"#N/A"},{"$error":"#N/A"},{"$error":"#N/A"},{"$error":"#N/A"},{"$error":"#N/A"},{"$error":"#N/A"},{"$error":"#N/A"},{"$error":"#N/A"},{"$error":"#N/A"},{"$error":"#N/A"},{"$error":"#N/A"},{"$error":"#N/A"},{"$error":"#N/A"},{"$error":"#N/A"},{"$error":"#N/A"},{"$error":"#N/A"},{"$error":"#N/A"},{"$error":"#N/A"},{"$error":"#N/A"},{"$error":"#N/A"},{"$error":"#N/A"},{"$error":"#N/A"},{"$error":"#N/A"},{"$error":"#N/A"},{"$error":"#N/A"},{"$error":"#N/A"},{"$error":"#N/A"},{"$error":"#N/A"},{"$error":"#N/A"},{"$error":"#N/A"},{"$error":"#N/A"},{"$error":"#N/A"},{"$error":"#N/A"},{"$error":"#N/A"},{"$error":"#N/A"},{"$error":"#N/A"},{"$error":"#N/A"},{"$error":"#N/A"},{"$error":"#N/A"},{"$error":"#N/A"},{"$error":"#N/A"},{"$error":"#N/A"},{"$error":"#N/A"},{"$error":"#N/A"},{"$error":"#N/A"},{"$error":"#N/A"},{"$error":"#N/A"},{"$error":"#N/A"},{"$error":"#N/A"},{"$error":"#N/A"},{"$error":"#N/A"},{"$error":"#N/A"},{"$error":"#N/A"},{"$error":"#N/A"},{"$error":"#N/A"},{"$error":"#N/A"},{"$error":"#N/A"},{"$error":"#N/A"},{"$error":"#N/A"},{"$error":"#N/A"},{"$error":"#N/A"},{"$error":"#N/A"},{"$error":"#N/A"},{"$error":"#N/A"},{"$error":"#N/A"},{"$error":"#N/A"},{"$error":"#N/A"},{"$error":"#N/A"},{"$error":"#N/A"}]
[null,"Punkte des Kursteilnehmers",{"$f":"LeistungDiagrammKursteilnehmerWerte","v":20},20,50,{"$error":"#N/A"},{"$error":"#N/A"},{"$error":"#N/A"},{"$error":"#N/A"},{"$error":"#N/A"},{"$error":"#N/A"},{"$error":"#N/A"},{"$error":"#N/A"},{"$error":"#N/A"},{"$error":"#N/A"},{"$error":"#N/A"},{"$error":"#N/A"},{"$error":"#N/A"},{"$error":"#N/A"},{"$error":"#N/A"},{"$error":"#N/A"},{"$error":"#N/A"},{"$error":"#N/A"},{"$error":"#N/A"},{"$error":"#N/A"},{"$error":"#N/A"},{"$error":"#N/A"},{"$error":"#N/A"},{"$error":"#N/A"},{"$error":"#N/A"},{"$error":"#N/A"},{"$error":"#N/A"},{"$error":"#N/A"},{"$error":"#N/A"},{"$error":"#N/A"},{"$error":"#N/A"},{"$error":"#N/A"},{"$error":"#N/A"},{"$error":"#N/A"},{"$error":"#N/A"},{"$error":"#N/A"},{"$error":"#N/A"},{"$error":"#N/A"},{"$error":"#N/A"},{"$error":"#N/A"},{"$error":"#N/A"},{"$error":"#N/A"},{"$error":"#N/A"},{"$error":"#N/A"},{"$error":"#N/A"},{"$error":"#N/A"},{"$error":"#N/A"},{"$error":"#N/A"},{"$error":"#N/A"},{"$error":"#N/A"},{"$error":"#N/A"},{"$error":"#N/A"},{"$error":"#N/A"},{"$error":"#N/A"},{"$error":"#N/A"},{"$error":"#N/A"},{"$error":"#N/A"},{"$error":"#N/A"},{"$error":"#N/A"},{"$error":"#N/A"},{"$error":"#N/A"},{"$error":"#N/A"},{"$error":"#N/A"},{"$error":"#N/A"},{"$error":"#N/A"},{"$error":"#N/A"},{"$error":"#N/A"},{"$error":"#N/A"},{"$error":"#N/A"},{"$error":"#N/A"},{"$error":"#N/A"},{"$error":"#N/A"},{"$error":"#N/A"},{"$error":"#N/A"},{"$error":"#N/A"},{"$error":"#N/A"},{"$error":"#N/A"},{"$error":"#N/A"},{"$error":"#N/A"},{"$error":"#N/A"},{"$error":"#N/A"},{"$error":"#N/A"},{"$error":"#N/A"},{"$error":"#N/A"},{"$error":"#N/A"},{"$error":"#N/A"},{"$error":"#N/A"},{"$error":"#N/A"},{"$error":"#N/A"},{"$error":"#N/A"},{"$error":"#N/A"},{"$error":"#N/A"},{"$error":"#N/A"},{"$error":"#N/A"},{"$error":"#N/A"},{"$error":"#N/A"},{"$error":"#N/A"},{"$error":"#N/A"},{"$error":"#N/A"},{"$error":"#N/A"},{"$error":"#N/A"},{"$error":"#N/A"},{"$error":"#N/A"},{"$error":"#N/A"},{"$error":"#N/A"},{"$error":"#N/A"},{"$error":"#N/A"},{"$error":"#N/A"},{"$error":"#N/A"},{"$error":"#N/A"},{"$error":"#N/A"},{"$error":"#N/A"},{"$error":"#N/A"},{"$error":"#N/A"},{"$error":"#N/A"},{"$error":"#N/A"},{"$error":"#N/A"},{"$error":"#N/A"},{"$error":"#N/A"},{"$error":"#N/A"},{"$error":"#N/A"},{"$error":"#N/A"},{"$error":"#N/A"},{"$error":"#N/A"},{"$error":"#N/A"},{"$error":"#N/A"},{"$error":"#N/A"},{"$error":"#N/A"},{"$error":"#N/A"},{"$error":"#N/A"},{"$error":"#N/A"},{"$error":"#N/A"},{"$error":"#N/A"},{"$error":"#N/A"},{"$error":"#N/A"},{"$error":"#N/A"},{"$error":"#N/A"},{"$error":"#N/A"},{"$error":"#N/A"},{"$error":"#N/A"},{"$error":"#N/A"},{"$error":"#N/A"},{"$error":"#N/A"},{"$error":"#N/A"},{"$error":"#N/A"},{"$error":"#N/A"},{"$error":"#N/A"},{"$error":"#N/A"},{"$error":"#N/A"},{"$error":"#N/A"},{"$error":"#N/A"},{"$error":"#N/A"},{"$error":"#N/A"},{"$error":"#N/A"},{"$error":"#N/A"},{"$error":"#N/A"},{"$error":"#N/A"},{"$error":"#N/A"},{"$error":"#N/A"},{"$error":"#N/A"},{"$error":"#N/A"},{"$error":"#N/A"},{"$error":"#N/A"},{"$error":"#N/A"},{"$error":"#N/A"},{"$error":"#N/A"},{"$error":"#N/A"},{"$error":"#N/A"},{"$error":"#N/A"},{"$error":"#N/A"},{"$error":"#N/A"},{"$error":"#N/A"},{"$error":"#N/A"},{"$error":"#N/A"},{"$error":"#N/A"},{"$error":"#N/A"},{"$error":"#N/A"},{"$error":"#N/A"},{"$error":"#N/A"},{"$error":"#N/A"},{"$error":"#N/A"},{"$error":"#N/A"},{"$error":"#N/A"},{"$error":"#N/A"},{"$error":"#N/A"},{"$error":"#N/A"},{"$error":"#N/A"},{"$error":"#N/A"},{"$error":"#N/A"},{"$error":"#N/A"},{"$error":"#N/A"},{"$error":"#N/A"},{"$error":"#N/A"},{"$error":"#N/A"},{"$error":"#N/A"},{"$error":"#N/A"},{"$error":"#N/A"},{"$error":"#N/A"},{"$error":"#N/A"},{"$error":"#N/A"},{"$error":"#N/A"},{"$error":"#N/A"},{"$error":"#N/A"},{"$error":"#N/A"},{"$error":"#N/A"},{"$error":"#N/A"},{"$error":"#N/A"},{"$error":"#N/A"},{"$error":"#N/A"},{"$error":"#N/A"},{"$error":"#N/A"},{"$error":"#N/A"},{"$error":"#N/A"},{"$error":"#N/A"},{"$error":"#N/A"},{"$error":"#N/A"},{"$error":"#N/A"},{"$error":"#N/A"},{"$error":"#N/A"},{"$error":"#N/A"},{"$error":"#N/A"},{"$error":"#N/A"},{"$error":"#N/A"},{"$error":"#N/A"},{"$error":"#N/A"},{"$error":"#N/A"},{"$error":"#N/A"},{"$error":"#N/A"},{"$error":"#N/A"},{"$error":"#N/A"},{"$error":"#N/A"},{"$error":"#N/A"},{"$error":"#N/A"},{"$error":"#N/A"},{"$error":"#N/A"},{"$error":"#N/A"},{"$error":"#N/A"},{"$error":"#N/A"},{"$error":"#N/A"},{"$error":"#N/A"},{"$error":"#N/A"},{"$error":"#N/A"},{"$error":"#N/A"},{"$error":"#N/A"},{"$error":"#N/A"},{"$error":"#N/A"},{"$error":"#N/A"},{"$error":"#N/A"},{"$error":"#N/A"},{"$error":"#N/A"},{"$error":"#N/A"},{"$error":"#N/A"},{"$error":"#N/A"},{"$error":"#N/A"},{"$error":"#N/A"},{"$error":"#N/A"},{"$error":"#N/A"},{"$error":"#N/A"},{"$error":"#N/A"},{"$error":"#N/A"},{"$error":"#N/A"},{"$error":"#N/A"},{"$error":"#N/A"},{"$error":"#N/A"},{"$error":"#N/A"},{"$error":"#N/A"},{"$error":"#N/A"},{"$error":"#N/A"},{"$error":"#N/A"},{"$error":"#N/A"},{"$error":"#N/A"},{"$error":"#N/A"},{"$error":"#N/A"},{"$error":"#N/A"},{"$error":"#N/A"},{"$error":"#N/A"},{"$error":"#N/A"},{"$error":"#N/A"},{"$error":"#N/A"},{"$error":"#N/A"},{"$error":"#N/A"},{"$error":"#N/A"},{"$error":"#N/A"},{"$error":"#N/A"},{"$error":"#N/A"},{"$error":"#N/A"},{"$error":"#N/A"},{"$error":"#N/A"},{"$error":"#N/A"},{"$error":"#N/A"},{"$error":"#N/A"},{"$error":"#N/A"},{"$error":"#N/A"},{"$error":"#N/A"},{"$error":"#N/A"},{"$error":"#N/A"},{"$error":"#N/A"}]
[null,"Gesamtpunktzahl",{"$f":"LeistungDiagrammwerte","v":20},20,50,{"$error":"#N/A"},{"$error":"#N/A"},{"$error":"#N/A"},{"$error":"#N/A"},{"$error":"#N/A"},{"$error":"#N/A"},{"$error":"#N/A"},{"$error":"#N/A"},{"$error":"#N/A"},{"$error":"#N/A"},{"$error":"#N/A"},{"$error":"#N/A"},{"$error":"#N/A"},{"$error":"#N/A"},{"$error":"#N/A"},{"$error":"#N/A"},{"$error":"#N/A"},{"$error":"#N/A"},{"$error":"#N/A"},{"$error":"#N/A"},{"$error":"#N/A"},{"$error":"#N/A"},{"$error":"#N/A"},{"$error":"#N/A"},{"$error":"#N/A"},{"$error":"#N/A"},{"$error":"#N/A"},{"$error":"#N/A"},{"$error":"#N/A"},{"$error":"#N/A"},{"$error":"#N/A"},{"$error":"#N/A"},{"$error":"#N/A"},{"$error":"#N/A"},{"$error":"#N/A"},{"$error":"#N/A"},{"$error":"#N/A"},{"$error":"#N/A"},{"$error":"#N/A"},{"$error":"#N/A"},{"$error":"#N/A"},{"$error":"#N/A"},{"$error":"#N/A"},{"$error":"#N/A"},{"$error":"#N/A"},{"$error":"#N/A"},{"$error":"#N/A"},{"$error":"#N/A"},{"$error":"#N/A"},{"$error":"#N/A"},{"$error":"#N/A"},{"$error":"#N/A"},{"$error":"#N/A"},{"$error":"#N/A"},{"$error":"#N/A"},{"$error":"#N/A"},{"$error":"#N/A"},{"$error":"#N/A"},{"$error":"#N/A"},{"$error":"#N/A"},{"$error":"#N/A"},{"$error":"#N/A"},{"$error":"#N/A"},{"$error":"#N/A"},{"$error":"#N/A"},{"$error":"#N/A"},{"$error":"#N/A"},{"$error":"#N/A"},{"$error":"#N/A"},{"$error":"#N/A"},{"$error":"#N/A"},{"$error":"#N/A"},{"$error":"#N/A"},{"$error":"#N/A"},{"$error":"#N/A"},{"$error":"#N/A"},{"$error":"#N/A"},{"$error":"#N/A"},{"$error":"#N/A"},{"$error":"#N/A"},{"$error":"#N/A"},{"$error":"#N/A"},{"$error":"#N/A"},{"$error":"#N/A"},{"$error":"#N/A"},{"$error":"#N/A"},{"$error":"#N/A"},{"$error":"#N/A"},{"$error":"#N/A"},{"$error":"#N/A"},{"$error":"#N/A"},{"$error":"#N/A"},{"$error":"#N/A"},{"$error":"#N/A"},{"$error":"#N/A"},{"$error":"#N/A"},{"$error":"#N/A"},{"$error":"#N/A"},{"$error":"#N/A"},{"$error":"#N/A"},{"$error":"#N/A"},{"$error":"#N/A"},{"$error":"#N/A"},{"$error":"#N/A"},{"$error":"#N/A"},{"$error":"#N/A"},{"$error":"#N/A"},{"$error":"#N/A"},{"$error":"#N/A"},{"$error":"#N/A"},{"$error":"#N/A"},{"$error":"#N/A"},{"$error":"#N/A"},{"$error":"#N/A"},{"$error":"#N/A"},{"$error":"#N/A"},{"$error":"#N/A"},{"$error":"#N/A"},{"$error":"#N/A"},{"$error":"#N/A"},{"$error":"#N/A"},{"$error":"#N/A"},{"$error":"#N/A"},{"$error":"#N/A"},{"$error":"#N/A"},{"$error":"#N/A"},{"$error":"#N/A"},{"$error":"#N/A"},{"$error":"#N/A"},{"$error":"#N/A"},{"$error":"#N/A"},{"$error":"#N/A"},{"$error":"#N/A"},{"$error":"#N/A"},{"$error":"#N/A"},{"$error":"#N/A"},{"$error":"#N/A"},{"$error":"#N/A"},{"$error":"#N/A"},{"$error":"#N/A"},{"$error":"#N/A"},{"$error":"#N/A"},{"$error":"#N/A"},{"$error":"#N/A"},{"$error":"#N/A"},{"$error":"#N/A"},{"$error":"#N/A"},{"$error":"#N/A"},{"$error":"#N/A"},{"$error":"#N/A"},{"$error":"#N/A"},{"$error":"#N/A"},{"$error":"#N/A"},{"$error":"#N/A"},{"$error":"#N/A"},{"$error":"#N/A"},{"$error":"#N/A"},{"$error":"#N/A"},{"$error":"#N/A"},{"$error":"#N/A"},{"$error":"#N/A"},{"$error":"#N/A"},{"$error":"#N/A"},{"$error":"#N/A"},{"$error":"#N/A"},{"$error":"#N/A"},{"$error":"#N/A"},{"$error":"#N/A"},{"$error":"#N/A"},{"$error":"#N/A"},{"$error":"#N/A"},{"$error":"#N/A"},{"$error":"#N/A"},{"$error":"#N/A"},{"$error":"#N/A"},{"$error":"#N/A"},{"$error":"#N/A"},{"$error":"#N/A"},{"$error":"#N/A"},{"$error":"#N/A"},{"$error":"#N/A"},{"$error":"#N/A"},{"$error":"#N/A"},{"$error":"#N/A"},{"$error":"#N/A"},{"$error":"#N/A"},{"$error":"#N/A"},{"$error":"#N/A"},{"$error":"#N/A"},{"$error":"#N/A"},{"$error":"#N/A"},{"$error":"#N/A"},{"$error":"#N/A"},{"$error":"#N/A"},{"$error":"#N/A"},{"$error":"#N/A"},{"$error":"#N/A"},{"$error":"#N/A"},{"$error":"#N/A"},{"$error":"#N/A"},{"$error":"#N/A"},{"$error":"#N/A"},{"$error":"#N/A"},{"$error":"#N/A"},{"$error":"#N/A"},{"$error":"#N/A"},{"$error":"#N/A"},{"$error":"#N/A"},{"$error":"#N/A"},{"$error":"#N/A"},{"$error":"#N/A"},{"$error":"#N/A"},{"$error":"#N/A"},{"$error":"#N/A"},{"$error":"#N/A"},{"$error":"#N/A"},{"$error":"#N/A"},{"$error":"#N/A"},{"$error":"#N/A"},{"$error":"#N/A"},{"$error":"#N/A"},{"$error":"#N/A"},{"$error":"#N/A"},{"$error":"#N/A"},{"$error":"#N/A"},{"$error":"#N/A"},{"$error":"#N/A"},{"$error":"#N/A"},{"$error":"#N/A"},{"$error":"#N/A"},{"$error":"#N/A"},{"$error":"#N/A"},{"$error":"#N/A"},{"$error":"#N/A"},{"$error":"#N/A"},{"$error":"#N/A"},{"$error":"#N/A"},{"$error":"#N/A"},{"$error":"#N/A"},{"$error":"#N/A"},{"$error":"#N/A"},{"$error":"#N/A"},{"$error":"#N/A"},{"$error":"#N/A"},{"$error":"#N/A"},{"$error":"#N/A"},{"$error":"#N/A"},{"$error":"#N/A"},{"$error":"#N/A"},{"$error":"#N/A"},{"$error":"#N/A"},{"$error":"#N/A"},{"$error":"#N/A"},{"$error":"#N/A"},{"$error":"#N/A"},{"$error":"#N/A"},{"$error":"#N/A"},{"$error":"#N/A"},{"$error":"#N/A"},{"$error":"#N/A"},{"$error":"#N/A"},{"$error":"#N/A"},{"$error":"#N/A"},{"$error":"#N/A"},{"$error":"#N/A"},{"$error":"#N/A"},{"$error":"#N/A"},{"$error":"#N/A"},{"$error":"#N/A"},{"$error":"#N/A"},{"$error":"#N/A"},{"$error":"#N/A"},{"$error":"#N/A"},{"$error":"#N/A"},{"$error":"#N/A"},{"$error":"#N/A"},{"$error":"#N/A"},{"$error":"#N/A"},{"$error":"#N/A"},{"$error":"#N/A"},{"$error":"#N/A"},{"$error":"#N/A"},{"$error":"#N/A"},{"$error":"#N/A"},{"$error":"#N/A"},{"$error":"#N/A"},{"$error":"#N/A"},{"$error":"#N/A"},{"$error":"#N/A"},{"$error":"#N/A"},{"$error":"#N/A"},{"$error":"#N/A"},{"$error":"#N/A"},{"$error":"#N/A"},{"$error":"#N/A"},{"$error":"#N/A"},{"$error":"#N/A"}]